bitfinex-derivatives/quotes_SOLF0:USTF0_20241208
["timestamp","ask_amount","ask_price","bid_price","bid_amount"]
[1733701432847,1.94,236.23,236.17,6.58597411]
[1733701433049,1.94,236.23,236.15,49.35816279]
[1733701433050,1.94,236.23,236.19,6.58597411]
[1733701434156,2.1142,236.32,236.21,2.1152]
[1733701434346,6.58597411,236.28,236.21,2.1152]
[1733701434551,1.94,236.27,236.21,2.1152]
[1733701435657,2.1148,236.26,236.21,2.1152]
[1733701438351,6.58597411,236.24,236.15,6.58597411]
[1733701438550,1.94,236.27,236.12,2.7328]
[1733701438751,1.94,236.27,236.16,2.1156]
[1733701438957,6.58597411,236.22,236.16,2.1156]
[1733701439151,1.94,236.21,236.16,2.1156]
[1733701439350,1.94,236.21,236.12,2.7328]
[1733701439552,4.0552,236.21,236.14,8.70167411]
[1733701439752,1.94,236.21,236.14,8.70167411]
[1733701440651,2.1153,236.2,236.14,8.70167411]
[1733701440852,1.94,236.21,236.14,8.70167411]
[1733701441559,6.58597411,236.2,236.12,11.43467411]
[1733701442554,8.70127411,236.2,236.12,11.43467411]
[1733701445156,8.70127411,236.2,236.13,2.1159]
[1733701446559,2.1153,236.2,236.14,6.58597411]
[1733701446762,1.94,236.21,236.16,6.58597411]
[1733701447059,2.6537,236.28,236.12,2.7328]
[1733701447060,1.94,236.22,236.18,6.58597411]
[1733701447259,1.94,236.23,236.18,6.58597411]
[1733701447654,1.94,236.24,236.18,6.58597411]
[1733701448650,1.94,236.24,236.2,2.1153]
[1733701450053,1.94,236.24,236.2,8.70127411]
[1733701450657,25.27146139,236.29,236.22,6.58597411]
[1733701450859,1.94,236.28,236.24,6.58597411]
[1733701452054,1.94,236.28,236.22,6.58597411]
[1733701452663,1.94,236.28,236.23,2.115]
[1733701455958,4.0546,236.28,236.23,2.115]
[1733701456664,2.1146,236.28,236.23,2.115]
[1733701456865,1.92,236.27,236.23,2.115]
[1733701460259,1.92,236.27,236.26,8.70067411]
[1733701461168,1.92,236.3,236.26,8.70067411]
[1733701462066,1.92,236.3,236.27,2.1146]
[1733701462762,1.92,236.3,236.2,1.3709]
[1733701462763,0.46513,236.32,236.28,8.70047411]
[1733701462962,1.92,236.31,236.28,8.70047411]
[1733701463164,1.92,236.31,236.3,6.58597411]
[1733701464368,1.92,236.31,236.3,8.70037411]
[1733701464569,0.46513,236.32,236.3,6.58597411]
[1733701465668,0.46513,236.32,236.31,2.1143]
[1733701467070,0.46513,236.32,236.3,6.58597411]
[1733701467266,0.46513,236.32,236.2,1.3709]
[1733701467472,0.46513,236.32,236.26,6.58597411]
[1733701468472,0.46513,236.32,236.2,1.3709]
[1733701468473,6.58597411,236.3,236.2,1.3709]
[1733701468665,1.92,236.29,236.23,6.58597411]
[1733701469674,4.0345,236.29,236.24,2.1149]
[1733701469868,4.0345,236.29,236.23,6.58597411]
[1733701471475,4.0345,236.29,236.25,2.1148]
[1733701474677,6.58597411,236.28,236.03,8.34983855]
[1733701474877,6.58597411,236.28,235.94,8.4705]
[1733701474878,2.1148,236.25,236.21,2.1152]
[1733701475772,2.1148,236.25,236.22,6.58597411]
[1733701476173,1.92,236.29,236.14,1.92]
[1733701476174,1.92,236.29,236.24,8.70087411]
[1733701477480,2.1146,236.28,236.23,2.115]
[1733701481577,8.50597411,236.29,236.22,6.58597411]
[1733701481775,10.62047411,236.29,236.24,2.1149]
[1733701482184,10.62047411,236.29,236.24,8.70087411]
[1733701482185,4.0345,236.29,236.24,8.70087411]
[1733701482379,6.58597411,236.35,236.28,6.58597411]
[1733701482684,1.92,236.34,236.28,6.58597411]
[1733701483589,4.0341,236.34,236.29,2.1145]
[1733701487781,4.0341,236.34,236.21,2.7749]
[1733701487782,25.25808928,236.41,236.3,6.58597411]
[1733701487988,2.1136,236.39,236.34,8.69997411]
[1733701488184,1.92,236.38,236.34,8.69997411]
[1733701494292,1.92,236.38,236.34,2.114]
[1733701495086,1.92,236.38,236.21,2.7749]
[1733701495087,6.58597411,236.36,236.23,6.58597411]
[1733701495291,6.58597411,236.3,236.21,8.00217411]
[1733701495492,1.92,236.29,236.21,8.00217411]
[1733701496094,6.58597411,236.28,236.2,6.58597411]
[1733701496689,1.92,236.29,236.22,6.58597411]
[1733701496891,1.92,236.29,236.24,6.58597411]
[1733701497393,2.1146,236.28,236.24,6.58597411]
[1733701497687,1.92,236.29,236.24,6.58597411]
[1733701498797,1.92,236.29,236.23,2.115]
[1733701499788,1.92,236.29,236.24,2.1149]
[1733701499994,1.92,236.29,236.22,6.58597411]
[1733701500495,1.92,236.28,236.24,6.58597411]
[1733701500694,1.92,236.28,236.26,6.58597411]
[1733701500896,1.92,236.28,236.24,6.58597411]
[1733701501495,1.92,236.28,236.25,2.1148]
[1733701503800,1.92,236.28,236.24,8.70087411]
[1733701504000,1.92,236.28,236.24,2.1149]
[1733701504599,4.0346,236.28,236.24,2.1149]
[1733701506303,4.0346,236.28,236.25,2.1149]
[1733701506501,1.92,236.28,236.25,2.1149]
[1733701517212,6.58597411,236.27,236.13,1.2874]
[1733701517412,6.58597411,236.24,236.14,2.78396749]
[1733701517611,6.58597411,236.22,236.15,9.3699416]
[1733701517812,1.92,236.21,236.15,6.58597411]
[1733701518207,1.92,236.21,236.17,2.1155]
[1733701519517,1.92,236.21,236.14,6.58597411]
[1733701519518,6.58597411,236.2,236.14,6.58597411]
[1733701520314,6.58597411,236.2,236.16,2.1157]
[1733701521519,1.92,236.21,236.16,6.58597411]
[1733701522411,1.92,236.21,236.19,2.1154]
[1733701522715,1.92,236.21,236.18,6.58597411]
[1733701522911,1.92,236.21,236.2,6.58597411]
[1733701523112,1.92,236.21,236.2,8.70127411]
[1733701523415,1.92,236.21,236.2,2.1153]
[1733701524710,10.62077411,236.26,236.22,2.1151]
[1733701525210,1.3934,236.35,236.15,1.92]
[1733701525516,1.92,236.34,236.3,6.58597411]
[1733701525712,44.04,236.49,236.3,6.58597411]
[1733701525713,6.58597411,236.38,236.3,6.58597411]
[1733701526110,6.58597411,236.38,236.32,2.1142]
[1733701526316,4.0337,236.39,236.32,2.1142]
[1733701526317,6.58597411,236.36,236.32,2.1142]
[1733701526510,6.58597411,236.36,236.26,2.1147]
[1733701526717,6.58597411,236.36,236.28,6.58597411]
[1733701527619,8.69987411,236.36,236.29,2.1144]
[1733701530511,8.69987411,236.36,236.3,2.1144]
[1733701530712,8.69987411,236.36,236.28,6.58597411]
[1733701531719,8.69987411,236.36,236.31,2.1143]
[1733701532623,6.58597411,236.36,236.31,2.1143]
[1733701532826,1.92,236.39,236.32,6.58597411]
[1733701533125,1.92,236.38,236.32,6.58597411]
[1733701533625,1.92,236.38,236.33,2.1142]
[1733701533824,6.58597411,236.39,236.33,2.1142]
[1733701534032,1.92,236.38,236.33,2.1142]
[1733701534726,1.92,236.38,236.34,2.1141]
[1733701535827,1.92,236.38,236.33,2.1142]
[1733701536021,6.58597411,236.37,236.25,1.92]
[1733701536224,6.58597411,236.37,236.29,6.58597411]
[1733701536425,6.58597411,236.37,236.26,2.7782208]
[1733701536426,1.92,236.38,236.31,6.58597411]
[1733701536825,1.92,236.38,236.33,6.58597411]
[1733701537721,1.92,236.38,236.35,2.1139]
[1733701542427,6.58597411,236.36,236.31,2.1143]
[1733701542623,6.58597411,236.36,236.29,6.58597411]
[1733701543128,6.58597411,236.36,236.31,2.1143]
[1733701543732,6.58597411,236.36,236.32,2.1142]
[1733701546139,4.0337,236.38,236.31,6.58597411]
[1733701546340,8.50597411,236.38,236.33,2.1141]
[1733701548636,1.92,236.38,236.31,6.58597411]
[1733701548945,1.92,236.38,236.33,6.58597411]
[1733701549743,1.92,236.38,236.37,2.1138]
[1733701550839,1.92,236.38,236.33,6.58597411]
[1733701551045,1.92,236.38,236.36,2.1139]
[1733701551643,1.92,236.38,236.35,2.114]
[1733701552246,1.92,236.41,236.35,6.58597411]
[1733701553446,6.58597411,236.43,236.38,2.1136]
[1733701553642,1.92,236.42,236.38,2.1136]
[1733701554142,1.92,236.42,236.4,2.1135]
[1733701556153,1.92,236.42,236.38,6.58597411]
[1733701556353,1.92,236.42,236.29,1.92]
[1733701556354,1.92,236.42,236.36,6.58597411]
[1733701557647,1.92,236.42,236.38,2.1136]
[1733701561656,1.92,236.43,236.4,2.1135]
[1733701561857,1.92,236.46,236.4,6.58597411]
[1733701562057,4.0353,236.56,236.44,6.58597411]
[1733701562058,6.58597411,236.51,236.44,6.58597411]
[1733701562359,4.0327,236.5,236.44,6.58597411]
[1733701562656,6.58597411,236.49,236.42,6.58597411]
[1733701563562,6.58597411,236.49,236.44,2.1132]
[1733701565260,1.92,236.5,236.46,2.113]
[1733701566756,1.3407,236.56,236.48,6.58597411]
[1733701566963,8.50597411,236.55,236.48,6.58597411]
[1733701567563,8.50597411,236.55,236.49,2.1127]
[1733701568963,1.92,236.55,236.49,2.1127]
[1733701569162,6.58597411,236.54,236.49,2.1127]
[1733701571357,1.92,236.53,236.49,2.1127]
[1733701571757,6.58597411,236.54,236.49,2.1127]
[1733701571962,27.90662296,236.62,236.52,6.58597411]
[1733701572162,8.69777411,236.59,236.52,6.58597411]
[1733701572363,6.58597411,236.59,236.46,4.0739]
[1733701572660,1.92,236.58,236.51,8.69847411]
[1733701573766,6.58597411,236.57,236.51,2.1125]
[1733701574568,8.69797411,236.57,236.51,2.1125]
[1733701576167,8.50597411,236.58,236.53,2.1123]
[1733701576366,8.50597411,236.58,236.51,6.58597411]
[1733701576770,1.92,236.58,236.54,2.1122]
[1733701577570,1.92,236.58,236.53,8.69837411]
[1733701577864,8.50597411,236.58,236.51,6.58597411]
[1733701578069,6.58597411,236.56,236.5,2.1126]
[1733701578662,8.69807411,236.56,236.5,2.1126]
[1733701579060,6.58597411,236.56,236.51,8.69847411]
[1733701579263,10.61797411,236.58,236.51,6.58597411]
[1733701579871,10.61797411,236.58,236.53,2.1123]
[1733701580267,1.92,236.58,236.53,6.58597411]
[1733701580560,1.92,236.58,236.54,2.1123]
[1733701582379,6.58597411,236.6,236.55,2.1122]
[1733701582584,1.92,236.59,236.55,6.58597411]
[1733701583582,1.92,236.59,236.55,8.69817411]
[1733701583785,1.92,236.59,236.55,2.1122]
[1733701586281,6.58597411,236.56,236.46,4.0739]
[1733701586485,6.58597411,236.54,236.47,6.58597411]
[1733701586678,8.50597411,236.54,236.47,6.58597411]
[1733701587075,8.50597411,236.54,236.46,4.0739]
[1733701587281,6.58597411,236.51,236.46,1.3419]
[1733701587681,8.69837411,236.53,236.46,1.3419]
[1733701588286,8.69837411,236.53,236.48,2.1128]
[1733701590385,8.69837411,236.53,236.49,2.1127]
[1733701593084,6.58597411,236.55,236.49,6.58597411]
[1733701593386,1.92,236.56,236.53,6.58597411]
[1733701593992,1.92,236.58,236.55,2.1121]
[1733701598591,6.58597411,236.56,236.47,2.6884]
[1733701598894,6.58597411,236.56,236.49,6.58597411]
[1733701599990,6.58597411,236.56,236.51,2.1126]
[1733701600487,6.58597411,236.56,236.52,2.1125]
[1733701600789,2.1121,236.57,236.52,2.1125]
[1733701600990,8.50597411,236.58,236.51,6.58597411]
[1733701601190,1.92,236.58,236.53,6.58597411]
[1733701602590,1.92,236.58,236.55,2.1123]
[1733701603587,8.50597411,236.58,236.55,2.1123]
[1733701603792,8.50597411,236.58,236.48,6.58597411]
[1733701603793,6.58597411,236.56,236.48,6.58597411]
[1733701603993,6.58597411,236.54,236.46,7.92787411]
[1733701604193,6.58597411,236.5,236.45,2.1132]
[1733701604385,1.92,236.49,236.42,6.58597411]
[1733701605495,8.50597411,236.49,236.44,2.1132]
[1733701606990,10.61877411,236.49,236.44,2.1132]
[1733701607892,2.1129,236.48,236.42,2.1134]
[1733701608086,2.1129,236.48,236.42,8.69937411]
[1733701609999,2.1129,236.48,236.42,6.58597411]
[1733701610196,2.1129,236.48,236.43,2.1133]
[1733701610388,8.50597411,236.49,236.46,6.58597411]
[1733701610389,1.92,236.49,236.46,6.58597411]
[1733701610590,1.92,236.49,236.48,8.69887411]
[1733701619202,1.92,236.49,236.48,2.1129]
[1733701619703,1.92,236.49,236.46,2.113]
[1733701620902,1.92,236.49,236.47,2.113]
[1733701622408,1.92,236.49,236.47,6.58597411]
[1733701622608,1.92,236.49,236.48,2.1129]
[1733701627206,1.92,236.49,236.45,6.58597411]
[1733701627414,1.92,236.49,236.46,2.113]
[1733701627907,1.92,236.49,236.47,2.1129]
[1733701628710,1.92,236.49,236.4,4.5569]
[1733701628910,4.0328,236.49,236.45,2.1131]
[1733701630215,1.92,236.49,236.45,2.1131]
[1733701631311,1.92,236.49,236.43,6.58597411]
[1733701631512,1.92,236.49,236.46,2.113]
[1733701646726,1.92,236.49,236.47,2.1129]
[1733701646924,1.92,236.49,236.46,6.58597411]
[1733701647118,1.92,236.49,236.48,6.58597411]
[1733701648626,1.92,236.49,236.48,8.69877411]
[1733701649322,1.92,236.52,236.49,2.1126]
[1733701654734,8.50597411,236.52,236.48,2.1128]
[1733701656137,10.61837411,236.52,236.48,2.1128]
[1733701656734,8.50597411,236.52,236.48,2.1128]
[1733701657839,1.92,236.52,236.48,2.1128]
[1733701661340,1.92,236.52,236.49,2.1127]
[1733701661740,1.92,236.52,236.45,6.58597411]
[1733701661943,1.92,236.52,236.46,2.78986555]
[1733701662136,1.92,236.52,236.47,2.78986555]
[1733701662336,1.92,236.52,236.45,6.58597411]
[1733701662542,1.92,236.52,236.46,2.78990096]
[1733701662736,1.92,236.52,236.47,2.78990096]
[1733701663037,1.92,236.52,236.45,6.58597411]
[1733701663235,1.92,236.52,236.49,2.1127]
[1733701668341,1.92,236.52,236.48,2.1128]
[1733701674643,1.92,236.52,236.47,6.58597411]
[1733701674845,1.92,236.52,236.49,2.1127]
[1733701675041,2.1124,236.53,236.47,6.58597411]
[1733701675042,1.92,236.53,236.47,6.58597411]
[1733701675246,1.92,236.53,236.48,2.78973411]
[1733701675445,1.92,236.53,236.5,2.1126]
[1733701679259,1.92,236.53,236.49,2.1127]
[1733701679856,6.58597411,236.52,236.41,1.92]
[1733701680057,2.1126,236.51,236.45,2.113]
[1733701680255,2.1126,236.51,236.46,2.78863037]
[1733701680456,2.1126,236.51,236.44,6.58597411]
[1733701680657,2.1126,236.51,236.46,2.113]
[1733701680857,6.58597411,236.52,236.44,6.58597411]
[1733701681064,2.1127,236.5,236.44,6.58597411]
[1733701681261,2.1127,236.5,236.45,2.78872177]
[1733701681554,2.1128,236.48,236.44,6.58597411]
[1733701681751,2.1128,236.48,236.45,2.78877571]
[1733701681949,2.1128,236.48,236.46,2.78877571]
[1733701682152,2.1128,236.48,236.44,8.69907411]
[1733701682358,2.1128,236.48,236.45,2.78881449]
[1733701682557,2.1128,236.48,236.46,2.78881449]
[1733701682753,2.1127,236.49,236.44,8.69907411]
[1733701682949,2.1127,236.49,236.45,2.78881449]
[1733701683155,2.1127,236.49,236.44,8.69907411]
[1733701683156,2.1127,236.49,236.46,2.78881449]
[1733701683356,8.50597411,236.48,236.42,2.1133]
[1733701683565,8.50597411,236.48,236.43,2.78923921]
[1733701683860,8.50597411,236.48,236.42,2.1133]
[1733701684056,8.50597411,236.48,236.43,2.78930514]
[1733701684257,8.50597411,236.48,236.42,8.69927411]
[1733701684258,2.1129,236.47,236.42,8.69927411]
[1733701684457,1.92,236.48,236.46,6.58597411]
[1733701684655,6.58597411,236.53,236.46,6.58597411]
[1733701684856,25.2375674,236.59,236.49,6.58597411]
[1733701684857,1.92,236.52,236.49,6.58597411]
[1733701685057,1.92,236.51,236.49,6.58597411]
[1733701686563,1.92,236.51,236.49,8.69867411]
[1733701689262,1.92,236.51,236.49,2.1127]
[1733701692059,1.92,236.51,236.46,2.113]
[1733701692060,6.58597411,236.5,236.46,2.113]
[1733701692467,6.58597411,236.5,236.44,6.58597411]
[1733701692669,8.69867411,236.5,236.45,2.78920918]
[1733701692868,8.69867411,236.5,236.44,8.69907411]
[1733701693070,8.69867411,236.5,236.45,2.78920921]
[1733701693270,8.69867411,236.5,236.44,8.69907411]
[1733701693470,8.69867411,236.5,236.45,2.78913767]
[1733701693666,2.1128,236.48,236.44,8.69907411]
[1733701693970,2.1128,236.48,236.45,2.78913806]
[1733701694164,2.1128,236.48,236.44,8.69907411]
[1733701694365,2.1128,236.48,236.45,2.78904062]
[1733701694670,2.1128,236.48,236.44,2.1131]
[1733701694870,2.1128,236.48,236.45,2.78904257]
[1733701695065,2.1128,236.48,236.44,2.1131]
[1733701695271,2.1128,236.48,236.45,2.78897686]
[1733701695475,6.58597411,236.5,236.43,6.58597411]
[1733701695667,2.113,236.47,236.44,2.78899355]
[1733701695865,2.113,236.47,236.43,6.58597411]
[1733701696062,2.113,236.47,236.44,2.78901962]
[1733701696267,2.113,236.47,236.43,6.58597411]
[1733701697167,1.92,236.51,236.43,8.69917411]
[1733701697367,2.1128,236.48,236.43,6.58597411]
[1733701697770,25.2375674,236.59,236.47,6.58597411]
[1733701697971,25.2375674,236.59,236.49,6.58597411]
[1733701697972,6.58597411,236.54,236.49,6.58597411]
[1733701698272,1.92,236.53,236.49,6.58597411]
[1733701698871,2.1125,236.52,236.47,6.58597411]
[1733701700578,2.1125,236.52,236.47,8.69877411]
[1733701700776,4.0324,236.53,236.47,6.58597411]
[1733701701171,1.92,236.53,236.49,2.1127]
[1733701701471,1.92,236.53,236.49,8.69867411]
[1733701701976,1.92,236.52,236.49,8.69867411]
[1733701702374,1.92,236.52,236.5,2.1126]
[1733701705380,1.92,236.56,236.53,2.1123]
[1733701705677,1.92,236.56,236.54,6.58597411]
[1733701706475,1.92,236.59,236.54,6.58597411]
[1733701706677,1.92,236.59,236.56,8.69807411]
[1733701709481,1.92,236.59,236.56,2.1121]
[1733701714986,1.92,236.59,236.49,3.9924]
[1733701715188,1.92,236.59,236.55,8.69817411]
[1733701715384,1.92,236.59,236.49,3.9924]
[1733701715591,8.50597411,236.59,236.52,6.58597411]
[1733701715792,2.1119,236.58,236.52,2.1125]
[1733701715994,8.50597411,236.59,236.52,2.1125]
[1733701716288,8.50597411,236.59,236.52,8.69847411]
[1733701717596,2.112,236.57,236.52,8.69847411]
[1733701718389,2.112,236.57,236.53,2.1124]
[1733701719692,8.50597411,236.59,236.55,2.1122]
[1733701719693,4.0319,236.59,236.55,2.1122]
[1733701720286,1.92,236.59,236.55,2.1122]
[1733701720490,2.5615,236.69,236.56,6.58597411]
[1733701720688,6.58597411,236.64,236.58,2.1119]
[1733701720894,1.92,236.63,236.58,2.1119]
[1733701721689,4.0316,236.63,236.58,2.1119]
[1733701722291,2.5615,236.69,236.58,6.58597411]
[1733701722490,6.58597411,236.67,236.6,8.69767411]
[1733701723091,1.92,236.66,236.6,8.69767411]
[1733701723692,2.1113,236.65,236.6,8.69767411]
[1733701724298,8.69727411,236.65,236.6,2.1117]
[1733701724599,8.69727411,236.65,236.58,8.69777411]
[1733701724800,6.58597411,236.63,236.52,1.92]
[1733701724988,6.58597411,236.61,236.52,1.92]
[1733701725297,8.50597411,236.61,236.55,2.1122]
[1733701725598,2.1118,236.6,236.54,8.69827411]
[1733701725791,8.50597411,236.61,236.54,8.69827411]
[1733701726595,2.112,236.57,236.52,6.58597411]
[1733701727592,2.112,236.57,236.52,8.69837411]
[1733701729396,2.112,236.57,236.54,6.58597411]
[1733701731902,2.1119,236.58,236.54,6.58597411]
[1733701732104,1.92,236.61,236.55,2.1122]
[1733701732502,2.1118,236.6,236.55,2.1122]
[1733701732702,1.92,236.61,236.54,6.58597411]
[1733701733200,4.0317,236.61,236.56,2.112]
[1733701736708,4.0317,236.61,236.56,8.69797411]
[1733701738604,6.58597411,236.64,236.58,6.58597411]
[1733701738805,6.58597411,236.66,236.58,6.58597411]
[1733701739007,1.92,236.65,236.58,6.58597411]
[1733701739504,1.92,236.64,236.58,6.58597411]
[1733701739700,4.0314,236.64,236.59,2.1118]
[1733701739906,1.92,236.64,236.6,6.58597411]
[1733701740211,1.92,236.66,236.61,2.1116]
[1733701740411,1.92,236.66,236.62,6.58597411]
[1733701740907,4.0312,236.66,236.62,6.58597411]
[1733701742615,4.0312,236.66,236.6,8.69767411]
[1733701744112,2.1113,236.65,236.6,8.69767411]
[1733701745111,1.92,236.67,236.62,6.58597411]
[1733701745511,2.1109,236.7,236.64,8.69727411]
[1733701745712,1.92,236.69,236.64,8.69727411]
[1733701745913,1.92,236.69,236.64,6.58597411]
[1733701746707,4.031,236.69,236.64,6.58597411]
[1733701747214,2.1107,236.72,236.65,2.1113]
[1733701747413,1.92,236.71,236.65,2.1113]
[1733701748016,1.92,236.71,236.66,6.58597411]
[1733701749713,2.1109,236.7,236.66,6.58597411]
[1733701750218,8.69687411,236.7,236.64,2.1114]
[1733701750409,8.69687411,236.7,236.64,8.69737411]
[1733701751316,2.1109,236.7,236.64,6.58597411]
[1733701751518,2.1109,236.7,236.65,2.1113]
[1733701751812,1.92,236.71,236.66,6.58597411]
[1733701752119,4.0308,236.71,236.66,8.69717411]
[1733701757018,43.98,236.77,236.66,6.58597411]
[1733701757218,2.1106,236.73,236.68,8.69697411]
[1733701761011,2.1106,236.73,236.68,6.58597411]
[1733701761210,1.92,236.74,236.68,6.58597411]
[1733701761411,6.58597411,236.71,236.64,6.58597411]
[1733701761818,2.1109,236.69,236.64,6.58597411]
[1733701762322,4.0309,236.69,236.64,6.58597411]
[1733701763917,4.0309,236.69,236.66,6.58597411]
[1733701764221,1.92,236.69,236.66,6.58597411]
[1733701765015,1.92,236.69,236.68,6.58597411]
[1733701765224,1.92,236.74,236.68,6.58597411]
[1733701765425,1.92,236.74,236.7,6.58597411]
[1733701765717,6.58597411,236.77,236.7,6.58597411]
[1733701765922,1.92,236.76,236.7,6.58597411]
[1733701767123,2.1104,236.75,236.7,6.58597411]
[1733701768324,1.3785,236.9,236.74,6.58597411]
[1733701768621,6.58597411,236.84,236.77,6.58597411]
[1733701769321,1.92,236.87,236.79,6.58597411]
[1733701769628,6.58597411,236.83,236.77,6.58597411]
[1733701769921,4.0387,236.9,236.79,6.58597411]
[1733701770116,443.13539449,237.44,236.79,6.58597411]
[1733701770317,1.92,236.98,236.88,6.58597411]
[1733701770519,1.92,236.98,236.9,6.58597411]
[1733701770821,1.3739,236.99,236.92,6.58597411]
[1733701771016,4.0284,236.98,236.92,6.58597411]
[1733701771324,1.3609,237.09,236.96,6.58597411]
[1733701771523,6.58597411,237.07,237.01,6.58597411]
[1733701772326,1.3609,237.09,237.03,6.58597411]
[1733701772518,1.3583,237.11,237.04,6.58597411]
[1733701772916,7.94427411,237.11,237.04,6.58597411]
[1733701773125,1.3609,237.19,237.09,6.58597411]
[1733701773319,2.1067,237.17,237.04,12.35492065]
[1733701773518,2.1067,237.17,237.07,10.24712065]
[1733701773721,11.60802065,237.19,237.04,10.24712065]
[1733701773928,2.1,237.2,237.07,10.24712065]
[1733701774125,2.10801467,237.19,237.07,10.24712065]
[1733701774324,2.1068,237.16,237.07,10.24712065]
[1733701774529,2.10801467,237.19,237.03,1.2886]
[1733701774530,12.34712065,237.15,237.03,1.2886]
[1733701774727,12.34712065,237.15,236.99,10.24712065]
[1733701774918,2.1075,237.08,236.97,2.1084]
[1733701775118,2.28,237.07,236.97,12.35552065]
[1733701775323,2.28,237.07,236.97,10.24712065]
[1733701775525,2.1077,237.06,236.97,10.24712065]
[1733701776027,2.28,237.07,236.97,10.24712065]
[1733701776223,2.28,237.07,237.0,10.24712065]
[1733701776432,2.28,237.07,236.97,10.24712065]
[1733701777530,4.3876,237.07,236.97,10.24712065]
[1733701778229,2.28,237.07,236.94,10.24712065]
[1733701778422,10.24712065,237.06,236.94,10.24712065]
[1733701778624,10.24712065,237.06,236.91,12.52712065]
[1733701779128,10.24712065,237.03,236.91,10.24712065]
[1733701779332,2.28,237.02,236.91,10.24712065]
[1733701779832,2.28,237.02,236.94,10.24712065]
[1733701780632,2.28,237.02,236.95,2.1086]
[1733701782138,2.1078,237.04,236.95,2.1086]
[1733701782335,4.3878,237.04,236.95,2.1086]
[1733701783339,2.28,237.04,236.97,10.24712065]
[1733701784036,2.28,237.04,236.97,12.35552065]
[1733701785334,2.1079,237.03,236.94,12.35572065]
[1733701785532,2.28,237.04,236.94,10.24712065]
[1733701785728,2.28,237.04,236.92,0.863]
[1733701785930,2.1081,237.01,236.92,0.863]
[1733701786235,2.28,237.04,236.92,0.863]
[1733701786432,2.28,237.04,236.95,2.1086]
[1733701786433,4.3879,237.04,236.95,2.1086]
[1733701788634,2.1079,237.03,236.95,2.1086]
[1733701790140,4.3878,237.04,236.96,2.1085]
[1733701791642,2.1079,237.03,236.96,2.1085]
[1733701795149,1.3933,237.15,236.97,10.24712065]
[1733701795150,10.24712065,237.12,236.97,10.24712065]
[1733701795345,2.28,237.11,237.0,12.35522065]
[1733701795543,2.28,237.11,237.0,10.24712065]
[1733701795941,2.1076,237.06,237.0,10.24712065]
[1733701797142,1.3933,237.15,236.94,10.24712065]
[1733701797143,2.1081,237.01,236.94,10.24712065]
[1733701797749,2.1083,236.99,236.93,1.3198]
[1733701798444,192.0,237.29,236.98,20.4942413]
[1733701798644,12.67,237.28,237.15,10.24712065]
[1733701798844,22.91712065,237.27,237.08,2.1074]
[1733701799043,193.4096,237.3,237.1,10.24712065]
[1733701799044,1.4096,237.3,237.1,10.24712065]
[1733701799240,10.24712065,237.24,237.1,10.24712065]
[1733701799439,10.24712065,237.24,237.1,12.35442065]
[1733701799640,10.24712065,237.23,237.1,10.24712065]
[1733701799946,10.24712065,237.26,237.1,10.24712065]
[1733701800144,10.24712065,237.26,237.1,12.35432065]
[1733701800347,10.24712065,237.26,237.13,10.24712065]
[1733701800546,10.24712065,237.23,237.1,12.35442065]
[1733701801048,2.106,237.25,237.13,10.24712065]
[1733701801348,10.24712065,237.28,237.13,10.24712065]
[1733701801549,1.4096,237.3,237.13,10.24712065]
[1733701801746,2.1054,237.31,237.2,10.24712065]
[1733701802651,12.35232065,237.33,237.2,10.24712065]
[1733701802846,12.35232065,237.33,237.17,10.24712065]
[1733701803048,10.24712065,237.27,237.14,10.24712065]
[1733701803250,2.1059,237.26,237.11,10.24712065]
[1733701803446,10.24712065,237.27,237.11,10.24712065]
[1733701803847,10.24712065,237.24,237.11,10.24712065]
[1733701804048,10.24712065,237.24,237.09,4.0794]
[1733701804049,10.24712065,237.21,237.09,4.0794]
[1733701804246,12.35312065,237.24,237.1,2.1072]